fUST/lending_fUST_20240608
["ID","MTS","AMOUNT","RATE_DAILY","PERIOD"]
[328832061,1717855854847,-500.0,0.00017534,2]
[328832062,1717855854856,-1480.04,0.00017534,2]
[328832063,1717855854865,-500.0,0.00017534,2]
[328832064,1717855854875,-877.21,0.00017534,2]
[328832065,1717855854884,-619.8,0.00017534,2]
[328832066,1717855854894,-975.62,0.00017534,2]
[328832067,1717855854904,-660.83,0.00017534,2]
[328832068,1717855854914,-537.35,0.00017534,2]
[328832069,1717855854924,-1571.4,0.00017534,2]
[328832070,1717855854933,-500.0,0.00017534,2]
[328832071,1717855854943,-500.0,0.00017534,2]
[328832072,1717855854953,-920.56,0.00017534,2]
[328832073,1717855854962,-732.6,0.00017534,2]
[328832074,1717855854977,-500.0,0.00017534,2]
[328832075,1717855854986,-500.0,0.00017534,2]
[328832076,1717855854997,-500.0,0.00017534,2]
[328832077,1717855855006,-500.0,0.00017534,2]
[328832078,1717855855017,-1098.5,0.00017534,2]
[328832079,1717855855026,-500.0,0.00017534,2]
[328832080,1717855855036,-500.0,0.00017534,2]
[328832081,1717855855046,-199.93,0.00017534,2]
[328832082,1717855855058,-601.82,0.00017534,2]
[328832083,1717855855068,-1687.64,0.00017534,2]
[328832084,1717855855077,-500.0,0.00017534,2]
[328832085,1717855855087,-500.0,0.00017534,2]
[328832086,1717855855097,-871.53,0.00017534,2]
[328832087,1717855855106,-500.0,0.00017534,2]
[328832088,1717855855115,-1512.7,0.00017534,2]
[328832089,1717855855125,-528.82,0.00017534,2]
[328832090,1717855855134,-500.0,0.00017534,2]
[328832091,1717855855143,-500.0,0.00017534,2]
[328832092,1717855855152,-500.91,0.00017534,2]
[328832093,1717855855162,-500.0,0.00017534,2]
[328832094,1717855855171,-828.48,0.00017534,2]
[328832095,1717855855180,-1556.87,0.00017534,2]
[328832096,1717855855189,-536.0,0.00017534,2]
[328832097,1717855855199,-1276.66,0.00017534,2]
[328832098,1717855855209,-804.5,0.00017534,2]
[328832099,1717855855219,-500.0,0.00017534,2]
[328832100,1717855855228,-476.76960589,0.00017534,2]
[328832101,1717855855238,-2157.52,0.00017534,2]
[328832102,1717855855247,-500.0,0.00017534,2]
[328832103,1717855855256,-500.0,0.00017534,2]
[328832104,1717855855266,-500.0,0.00017534,2]
[328832105,1717855855275,-500.0,0.00017534,2]
[328832106,1717855855284,-500.0,0.00017534,2]
[328832107,1717855855294,-500.0,0.00017534,2]
[328832108,1717855855303,-500.0,0.00017534,2]
[328832109,1717855855313,-992.02,0.00017534,2]
[328832110,1717855855325,-500.0,0.00017534,2]
[328832111,1717855855334,-500.0,0.00017534,2]
[328832112,1717855855344,-500.0,0.00017534,2]
[328832113,1717855855354,-542.52,0.00017534,2]
[328832114,1717855855364,-751.63,0.00017534,2]
[328832115,1717855855373,-558.38,0.00017534,2]
[328832116,1717855855383,-1485.0,0.00017534,2]
[328832117,1717855855393,-516.33,0.00017534,2]
[328832118,1717855855404,-177.060997,0.00017534,2]
[328832119,1717855855414,-642.71036767,0.00017534,2]
[328832120,1717855855424,-177.060997,0.00017534,2]
[328832121,1717855855435,-500.0,0.00017534,2]
[328832122,1717855855444,-1620.66,0.00017534,2]
[328832123,1717855855454,-500.0,0.00017534,2]
[328832124,1717855855463,-2740.38,0.00017534,2]
[328832125,1717855855473,-748.59,0.00017534,2]
[328832126,1717855855482,-500.0,0.00017534,2]
[328832127,1717855855492,-2769.46,0.00017534,2]
[328832128,1717855855502,-545.82,0.00017534,2]
[328832129,1717855855512,-1406.26,0.00017534,2]
[328832130,1717855855522,-1188.05,0.00017534,2]
[328832131,1717855855532,-500.0,0.00017534,2]
[328832132,1717855855542,-1936.86,0.00017534,2]
[328832133,1717855855551,-500.0,0.00017534,2]
[328832134,1717855855561,-500.0,0.00017534,2]
[328832135,1717855855571,-3481.6,0.00017534,2]
[328832136,1717855855581,-830.79,0.00017534,2]
[328832137,1717855855590,-500.0,0.00017534,2]
[328832138,1717855855600,-4055.43,0.00017534,2]
[328832139,1717855855610,-535.13,0.00017534,2]
[328832140,1717855855620,-1711.92,0.00017534,2]
[328832141,1717855855630,-500.0,0.00017534,2]
[328832142,1717855855640,-7839.29,0.00017534,2]
[328832143,1717855855650,-500.0,0.00017534,2]
[328832144,1717855855660,-458.29298178,0.00017534,2]
[328832145,1717855855670,-4240.14,0.00017534,2]
[328832146,1717855855681,-500.0,0.00017534,2]
[328832147,1717855855691,-500.0,0.00017534,2]
[328832148,1717855855700,-777.81,0.00017534,2]
[328832149,1717855855710,-656.61,0.00017534,2]
[328832150,1717855855720,-837.81,0.00017534,2]
[328832151,1717855855729,-2125.44,0.00017534,2]
[328832152,1717855855739,-858.72,0.00017534,2]
[328832153,1717855855749,-557.3,0.00017534,2]
[328832154,1717855855758,-500.0,0.00017534,2]
[328832155,1717855855767,-500.0,0.00017534,2]
[328832156,1717855855777,-500.0,0.00017534,2]
[328832157,1717855855787,-1581.68,0.00017534,2]
[328832158,1717855855797,-2009.83,0.00017534,2]
[328832159,1717855855806,-719.8,0.00017534,2]
[328832160,1717855855816,-5176.99,0.00017534,2]
[328832161,1717855855827,-639.4,0.00017534,2]
[328832162,1717855855836,-9141.08,0.00017534,2]
[328832163,1717855855846,-9689.53,0.00017534,2]
[328832164,1717855855856,-1831.62,0.00017534,2]
[328832165,1717855855866,-2465.76,0.00017534,2]
[328832166,1717855855875,-5196.1,0.00017534,2]
[328832167,1717855855885,-784.21,0.00017534,2]
[328832168,1717855855894,-500.0,0.00017534,2]
[328832169,1717855855903,-2008.87,0.00017534,2]
[328832170,1717855855913,-1321.87,0.00017534,2]
[328832171,1717855855923,-731.55,0.00017534,2]
[328832172,1717855855932,-500.0,0.00017534,2]
[328832173,1717855855942,-500.48,0.00017534,2]
[328832174,1717855855951,-913.11,0.00017534,2]
[328832175,1717855855960,-882.37,0.00017534,2]
[328832176,1717855855973,-500.0,0.00017534,2]
[328832177,1717855855982,-500.0,0.00017534,2]
[328832178,1717855855991,-529.22,0.00017534,2]
[328832179,1717855856001,-1072.16,0.00017534,2]
[328832180,1717855856010,-2705.64,0.00017534,2]
[328832181,1717855856020,-500.0,0.00017534,2]
[328832182,1717855856029,-568.5,0.00017534,2]
[328832183,1717855856039,-696.07,0.00017534,2]
[328832184,1717855856049,-153.0,0.00017534,2]
[328832185,1717855856059,-153.0,0.00017534,2]
[328832186,1717855856070,-153.0,0.00017534,2]
[328832187,1717855856079,-205.235798,0.00017534,2]
[328832188,1717855856089,-153.0,0.00017534,2]
[328832189,1717855856099,-205.235798,0.00017534,2]
[328832190,1717855856108,-153.0,0.00017534,2]
[328832191,1717855856118,-153.0,0.00017534,2]
[328832192,1717855856128,-153.0,0.00017534,2]
[328832193,1717855856138,-205.235798,0.00017534,2]
[328832194,1717855856147,-153.0,0.00017534,2]
[328832195,1717855856157,-153.0,0.00017534,2]
[328832196,1717855856166,-153.0,0.00017534,2]
[328832197,1717855856176,-204.5671408,0.00017534,2]
[328832198,1717855856186,-153.0,0.00017534,2]
[328832199,1717855856196,-153.0,0.00017534,2]
[328832200,1717855856206,-153.0,0.00017534,2]
[328832201,1717855856216,-447.534355,0.00017534,2]
[328832202,1717855856225,-153.0,0.00017534,2]
[328832203,1717855856235,-153.0,0.00017534,2]
[328832204,1717855856245,-153.0,0.00017534,2]
[328832205,1717855856254,-153.0,0.00017534,2]
[328832206,1717855856264,-153.0,0.00017534,2]
[328832207,1717855856274,-153.0,0.00017534,2]
[328832208,1717855856284,-307.2703269,0.00017534,2]
[328832209,1717855856294,-153.0,0.00017534,2]
[328832210,1717855856303,-153.0,0.00017534,2]
[328832211,1717855856313,-153.0,0.00017534,2]
[328832212,1717855856324,-1974.43123359,0.000176,2]
[328832213,1717855856334,-317.7,0.00017683,3]
[328832214,1717855856343,-151.0,0.00017683,3]
[328832215,1717855856353,-606.24758727,0.00017808,2]
[328832216,1717855856363,-500.0,0.00017808,2]
[328832217,1717855856372,-1015.43,0.00017808,2]
[328832218,1717855856382,-568.09,0.00017808,2]
[328832219,1717855856391,-561.44,0.00017808,2]
[328832220,1717855856400,-215.87923737,0.00017808,2]
[328832221,1717855856410,-1017.89,0.00017808,4]
[328832222,1717855856419,-500.0,0.00017808,2]
[328832223,1717855856429,-500.0,0.00017808,2]
[328832224,1717855856439,-500.0,0.00017808,2]
[328832225,1717855856448,-500.0,0.00017808,2]
[328832226,1717855856457,-500.0,0.00017808,2]
[328832227,1717855856467,-1462.49,0.00017808,2]
[328832228,1717855856476,-500.0,0.00017808,2]
[328832229,1717855856486,-570.14,0.00017808,2]
[328832230,1717855856496,-1790.87,0.00017808,2]
[328832231,1717855856505,-500.0,0.00017808,2]
[328832232,1717855856515,-586.65,0.00017808,2]
[328832233,1717855856524,-500.0,0.00017808,2]
[328832234,1717855856533,-500.0,0.00017808,2]
[328832235,1717855856543,-654.96,0.00017808,2]
[328832236,1717855856552,-500.0,0.00017808,2]
[328832237,1717855856562,-500.0,0.00017808,2]
[328832238,1717855856572,-500.0,0.00017808,2]
[328832239,1717855856582,-1480.04,0.00017808,2]
[328832240,1717855856591,-500.0,0.00017808,2]
[328832241,1717855856600,-877.21,0.00017808,2]
[328832242,1717855856609,-619.8,0.00017808,2]
[328832243,1717855856619,-975.62,0.00017808,2]
[328832244,1717855856628,-660.83,0.00017808,2]
[328832245,1717855856637,-537.35,0.00017808,2]
[328832246,1717855856647,-1571.4,0.00017808,2]
[328832247,1717855856656,-500.0,0.00017808,2]
[328832248,1717855856665,-500.0,0.00017808,2]
[328832249,1717855856675,-920.56,0.00017808,2]
[328832250,1717855856684,-732.6,0.00017808,2]
[328832251,1717855856693,-500.0,0.00017808,2]
[328832252,1717855856703,-343.7965023,0.00017808,2]
[328832253,1717855856713,-500.0,0.00017808,2]
[328832254,1717855856722,-500.0,0.00017808,2]
[328832255,1717855856732,-1098.5,0.00017808,2]
[328832256,1717855856742,-500.0,0.00017808,2]
[328832257,1717855856752,-500.0,0.00017808,2]
[328832258,1717855856761,-601.82,0.00017808,2]
[328832259,1717855856771,-1687.64,0.00017808,2]
[328832260,1717855856780,-500.0,0.00017808,2]
[328832261,1717855856790,-500.0,0.00017808,2]
[328832262,1717855856800,-871.53,0.00017808,2]
[328832263,1717855856809,-500.0,0.00017808,2]
[328832264,1717855856897,-1512.7,0.00017808,2]
[328832265,1717855856918,-528.82,0.00017808,2]
[328832266,1717855856928,-500.0,0.00017808,2]
[328832267,1717855856937,-500.0,0.00017808,2]
[328832268,1717855856947,-500.91,0.00017808,2]
[328832269,1717855856957,-500.0,0.00017808,2]
[328832270,1717855856967,-828.48,0.00017808,2]
[328832271,1717855856980,-1556.87,0.00017808,2]
[328832272,1717855856990,-536.0,0.00017808,2]
[328832273,1717855856999,-1276.66,0.00017808,2]
[328832274,1717855857008,-804.5,0.00017808,2]
[328832275,1717855857018,-500.0,0.00017808,2]
[328832276,1717855857028,-2157.52,0.00017808,2]
[328832277,1717855857037,-500.0,0.00017808,2]
[328832278,1717855857048,-500.0,0.00017808,2]
[328832279,1717855857058,-500.0,0.00017808,2]
[328832280,1717855857069,-500.0,0.00017808,2]
[328832281,1717855857080,-500.0,0.00017808,2]
[328832282,1717855857089,-500.0,0.00017808,2]
[328832283,1717855857100,-500.0,0.00017808,2]
[328832284,1717855857109,-992.02,0.00017808,2]
[328832285,1717855857119,-500.0,0.00017808,2]
[328832286,1717855857129,-500.0,0.00017808,2]
[328832287,1717855857139,-500.0,0.00017808,2]
[328832288,1717855857149,-542.52,0.00017808,2]
[328832289,1717855857159,-751.63,0.00017808,2]
[328832290,1717855857169,-558.38,0.00017808,2]
[328832291,1717855857179,-1485.0,0.00017808,2]
[328832292,1717855857190,-516.33,0.00017808,2]
[328832293,1717855857201,-177.060997,0.00017808,2]
[328832294,1717855857213,-177.060997,0.00017808,2]
[328832295,1717855857223,-177.060997,0.00017808,2]
[328832296,1717855857235,-177.060997,0.00017808,2]
[328832297,1717855857245,-251.0185662,0.00017808,2]
[328832298,1717855857256,-1620.66,0.00017808,2]
[328832299,1717855857267,-500.0,0.00017808,2]
[328832300,1717855857277,-2740.38,0.00017808,2]
[328832301,1717855857288,-748.59,0.00017808,2]
[328832302,1717855857299,-500.0,0.00017808,2]
[328832303,1717855857309,-2769.46,0.00017808,2]
[328832304,1717855857320,-545.82,0.00017808,2]
[328832305,1717855857330,-1406.26,0.00017808,2]
[328832306,1717855857340,-1188.05,0.00017808,2]
[328832307,1717855857349,-500.0,0.00017808,2]
[328832308,1717855857360,-1936.86,0.00017808,2]
[328832309,1717855857370,-500.0,0.00017808,2]
[328832310,1717855857380,-500.0,0.00017808,2]
[328832311,1717855857390,-3481.6,0.00017808,2]
[328832312,1717855857399,-830.79,0.00017808,2]
[328832313,1717855857409,-500.0,0.00017808,2]
[328832314,1717855857418,-4055.43,0.00017808,2]
[328832315,1717855857429,-535.13,0.00017808,2]
[328832316,1717855857440,-1711.92,0.00017808,2]
[328832317,1717855857450,-500.0,0.00017808,2]
[328832318,1717855857461,-7839.29,0.00017808,2]
[328832319,1717855857472,-500.0,0.00017808,2]
[328832320,1717855857483,-4240.14,0.00017808,2]
[328832321,1717855857492,-500.0,0.00017808,2]
[328832322,1717855857503,-500.0,0.00017808,2]
[328832323,1717855857512,-777.81,0.00017808,2]
[328832324,1717855857522,-656.61,0.00017808,2]
[328832325,1717855857531,-837.81,0.00017808,2]
[328832326,1717855857541,-2125.44,0.00017808,2]
[328832327,1717855857550,-858.72,0.00017808,2]
[328832328,1717855857559,-557.3,0.00017808,2]
[328832329,1717855857571,-500.0,0.00017808,2]
[328832330,1717855857580,-500.0,0.00017808,2]
[328832331,1717855857590,-500.0,0.00017808,2]
[328832332,1717855857601,-1581.68,0.00017808,2]
[328832333,1717855857613,-2009.83,0.00017808,2]
[328832334,1717855857622,-719.8,0.00017808,2]
[328832335,1717855857632,-5176.99,0.00017808,2]
[328832336,1717855857641,-639.4,0.00017808,2]
[328832337,1717855857651,-9141.08,0.00017808,2]
[328832338,1717855857663,-9689.53,0.00017808,2]
[328832339,1717855857673,-1831.62,0.00017808,2]
[328832340,1717855857683,-2465.76,0.00017808,2]
[328832341,1717855857692,-5196.1,0.00017808,2]
[328832342,1717855857702,-784.21,0.00017808,2]
[328832343,1717855857712,-500.0,0.00017808,2]
[328832344,1717855857721,-2008.87,0.00017808,2]
[328832345,1717855857731,-1321.87,0.00017808,2]
[328832346,1717855857741,-731.55,0.00017808,2]
[328832347,1717855857750,-500.0,0.00017808,2]
[328832348,1717855857760,-500.48,0.00017808,2]
[328832349,1717855857769,-913.11,0.00017808,2]
[328832350,1717855857779,-882.37,0.00017808,2]
[328832351,1717855857788,-500.0,0.00017808,2]
[328832352,1717855857798,-500.0,0.00017808,2]
[328832353,1717855857808,-529.22,0.00017808,2]
[328832354,1717855857817,-1072.16,0.00017808,2]
[328832355,1717855857828,-2705.64,0.00017808,2]
[328832356,1717855857838,-500.0,0.00017808,2]
[328832357,1717855857848,-568.5,0.00017808,2]
[328832358,1717855857857,-696.07,0.00017808,2]
[328832359,1717855857868,-5148.12422148,0.00017898,2]
[328832360,1717855857878,-317.7,0.00017933,3]
[328832361,1717855857888,-151.0,0.00017933,3]
[328832362,1717855857898,-11138.0,0.00018,2]
[328832363,1717855857908,-712.54708636,0.00018,2]
[328832364,1717855857918,-2201.08464376,0.00018,2]
[328832365,1717855857929,-154.95351395,0.00018,2]
[328832366,1717855857938,-277.81831048,0.00018,2]
[328832367,1717855857949,-1000.0,0.00018,2]
[328832368,1717855857958,-1000.0,0.00018,2]
[328832369,1717855857970,-153.8936512,0.00018044,2]
[328832370,1717855857981,-191.9113065,0.00018044,2]
[328832371,1717855857991,-587.8591499,0.00018044,2]
[328832372,1717855858001,-205.235798,0.00018044,2]
[328832373,1717855858012,-338.3492131,0.00018044,2]
[328832374,1717855858022,-205.235798,0.00018044,2]
[328832375,1717855858033,-153.0,0.00018044,2]
[328832376,1717855858043,-205.235798,0.00018044,2]
[328832377,1717855858056,-153.0,0.00018044,2]
[328832378,1717855858067,-153.0,0.00018044,2]
[328832379,1717855858077,-153.0,0.00018044,2]
[328832380,1717855858087,-153.0,0.00018044,2]
[328832381,1717855858096,-342.33983586,0.00018046,2]
[328832382,1717855858105,-500.0,0.00018082,2]
[328832383,1717855858114,-1015.43,0.00018082,2]
[328832384,1717855858123,-568.09,0.00018082,2]
[328832385,1717855858133,-561.44,0.00018082,2]
[328832386,1717855858143,-1017.89,0.00018082,4]
[328832387,1717855858153,-421.790358,0.00018082,2]
[328832388,1717855858162,-500.0,0.00018082,2]
[328832389,1717855858172,-500.0,0.00018082,2]
[328832390,1717855858182,-500.0,0.00018082,2]
[328832391,1717855858192,-500.0,0.00018082,2]
[328832392,1717855858201,-1462.49,0.00018082,2]
[328832393,1717855858211,-500.0,0.00018082,2]
[328832394,1717855858221,-570.14,0.00018082,2]
[328832395,1717855858231,-1790.87,0.00018082,2]
[328832396,1717855858241,-408.02463795,0.00018082,2]
[328832397,1717855858250,-586.65,0.00018082,2]
[328832398,1717855858260,-530.43445442,0.00018082,2]
[328832399,1717855858270,-500.0,0.00018082,2]
[328832400,1717855858279,-500.0,0.00018082,2]
[328832401,1717855858289,-654.96,0.00018082,2]
[328832402,1717855858299,-246.44347823,0.00018082,2]
[328832403,1717855858309,-500.0,0.00018082,2]
[328832404,1717855858318,-1480.04,0.00018082,2]
[328832405,1717855858329,-500.0,0.00018082,2]
[328832406,1717855858339,-877.21,0.00018082,2]
[328832407,1717855858349,-619.8,0.00018082,2]
[328832408,1717855858358,-975.62,0.00018082,2]
[328832409,1717855858368,-660.83,0.00018082,2]
[328832410,1717855858377,-537.35,0.00018082,2]
[328832411,1717855858387,-1571.4,0.00018082,2]
[328832412,1717855858397,-500.0,0.00018082,2]
[328832413,1717855858407,-500.0,0.00018082,2]
[328832414,1717855858417,-920.56,0.00018082,2]
[328832415,1717855858426,-732.6,0.00018082,2]
[328832416,1717855858436,-391.01869251,0.00018082,2]
[328832417,1717855858446,-500.0,0.00018082,2]
[328832418,1717855858456,-500.0,0.00018082,2]
[328832419,1717855858465,-1098.5,0.00018082,2]
[328832420,1717855858475,-500.0,0.00018082,2]
[328832421,1717855858485,-500.0,0.00018082,2]
[328832422,1717855858494,-601.82,0.00018082,2]
[328832423,1717855858503,-1687.64,0.00018082,2]
[328832424,1717855858512,-500.0,0.00018082,2]
[328832425,1717855858521,-500.0,0.00018082,2]
[328832426,1717855858530,-871.53,0.00018082,2]
[328832427,1717855858539,-535.18,0.00018082,2]
[328832428,1717855858548,-1512.7,0.00018082,2]
[328832429,1717855858557,-528.82,0.00018082,2]
[328832430,1717855858567,-500.0,0.00018082,2]
[328832431,1717855858577,-500.0,0.00018082,2]
[328832432,1717855858587,-500.91,0.00018082,2]
[328832433,1717855858596,-500.0,0.00018082,2]
[328832434,1717855858606,-828.48,0.00018082,2]
[328832435,1717855858616,-1556.87,0.00018082,2]
[328832436,1717855858625,-536.0,0.00018082,2]
[328832437,1717855858635,-1276.66,0.00018082,2]
[328832438,1717855858645,-804.5,0.00018082,2]
[328832439,1717855858654,-500.0,0.00018082,2]
[328832440,1717855858664,-2157.52,0.00018082,2]
[328832441,1717855858673,-500.0,0.00018082,2]
[328832442,1717855858682,-500.0,0.00018082,2]
[328832443,1717855858692,-500.0,0.00018082,2]
[328832444,1717855858703,-525.12138007,0.00018082,2]
[328832445,1717855858713,-500.0,0.00018082,2]
[328832446,1717855858722,-500.0,0.00018082,2]
[328832447,1717855858731,-500.0,0.00018082,2]
[328832448,1717855858741,-992.02,0.00018082,2]
[328832449,1717855858750,-500.0,0.00018082,2]
[328832450,1717855858759,-238.13000048,0.00018082,2]
[328832451,1717855858768,-500.0,0.00018082,2]
[328832452,1717855858778,-542.52,0.00018082,2]
[328832453,1717855858787,-751.63,0.00018082,2]
[328832454,1717855858796,-558.38,0.00018082,2]
[328832455,1717855858805,-1485.0,0.00018082,2]
[328832456,1717855858815,-516.33,0.00018082,2]
[328832457,1717855858826,-177.060997,0.00018082,2]
[328832458,1717855858835,-177.060997,0.00018082,2]
[328832459,1717855858844,-1620.66,0.00018082,2]
[328832460,1717855858853,-500.0,0.00018082,2]
[328832461,1717855858862,-2740.38,0.00018082,2]
[328832462,1717855858871,-748.59,0.00018082,2]
[328832463,1717855858881,-500.0,0.00018082,2]
[328832464,1717855858890,-2769.46,0.00018082,2]
[328832465,1717855858899,-545.82,0.00018082,2]
[328832466,1717855858995,-1406.26,0.00018082,2]
[328832467,1717855859005,-1188.05,0.00018082,2]
[328832468,1717855859015,-500.0,0.00018082,2]
[328832469,1717855859024,-1936.86,0.00018082,2]
[328832470,1717855859033,-500.0,0.00018082,2]
[328832471,1717855859043,-500.0,0.00018082,2]
[328832472,1717855859054,-3481.6,0.00018082,2]
[328832473,1717855859064,-830.79,0.00018082,2]
[328832474,1717855859075,-500.0,0.00018082,2]
[328832475,1717855859084,-4055.43,0.00018082,2]
[328832476,1717855859093,-535.13,0.00018082,2]
[328832477,1717855859102,-1711.92,0.00018082,2]
[328832478,1717855859112,-384.09411136,0.00018082,2]
[328832479,1717855859121,-7839.29,0.00018082,2]
[328832480,1717855859131,-500.0,0.00018082,2]
[328832481,1717855859140,-4240.14,0.00018082,2]
[328832482,1717855859150,-500.0,0.00018082,2]
[328832483,1717855859160,-500.0,0.00018082,2]
[328832484,1717855859169,-777.81,0.00018082,2]
[328832485,1717855859179,-656.61,0.00018082,2]
[328832486,1717855859188,-837.81,0.00018082,2]
[328832487,1717855859198,-2125.44,0.00018082,2]
[328832488,1717855859207,-858.72,0.00018082,2]
[328832489,1717855859217,-557.3,0.00018082,2]
[328832490,1717855859226,-500.0,0.00018082,2]
[328832491,1717855859236,-500.0,0.00018082,2]
[328832492,1717855859245,-500.0,0.00018082,2]
[328832493,1717855859255,-1581.68,0.00018082,2]
[328832494,1717855859264,-2009.83,0.00018082,2]
[328832495,1717855859274,-719.8,0.00018082,2]
[328832496,1717855859283,-5176.99,0.00018082,2]
[328832497,1717855859293,-639.4,0.00018082,2]
[328832498,1717855859302,-9141.08,0.00018082,2]
[328832499,1717855859312,-9689.53,0.00018082,2]
[328832500,1717855859321,-1831.62,0.00018082,2]
[328832501,1717855859331,-2465.76,0.00018082,2]
[328832502,1717855859340,-5196.1,0.00018082,2]
[328832503,1717855859349,-784.21,0.00018082,2]
[328832504,1717855859359,-500.0,0.00018082,2]
[328832505,1717855859369,-2008.87,0.00018082,2]
[328832506,1717855859379,-1321.87,0.00018082,2]
[328832507,1717855859388,-731.55,0.00018082,2]
[328832508,1717855859397,-500.0,0.00018082,2]
[328832509,1717855859406,-500.48,0.00018082,2]
[328832510,1717855859415,-913.11,0.00018082,2]
[328832511,1717855859425,-882.37,0.00018082,2]
[328832512,1717855859434,-500.0,0.00018082,2]
[328832513,1717855859443,-500.0,0.00018082,2]
[328832514,1717855859453,-529.22,0.00018082,2]
[328832515,1717855859462,-1072.16,0.00018082,2]
[328832516,1717855859471,-2705.64,0.00018082,2]
[328832517,1717855859481,-500.0,0.00018082,2]
[328832518,1717855859490,-568.5,0.00018082,2]
[328832519,1717855859499,-696.07,0.00018082,2]
[328832520,1717855859509,-160.0,0.00018122,2]
[328832521,1717855859518,-317.7,0.00018182,3]
[328832522,1717855859528,-151.0,0.00018182,3]
[328832523,1717855859537,-4234.812629,0.00018247,2]
[328832524,1717855859547,-4869.44421,0.00018247,2]
[328832525,1717855859556,-620.43899952,0.00018338,2]
[328832526,1717855859566,-161.78968926,0.00018356,2]
[328832527,1717855859577,-1015.43,0.00018356,2]
[328832528,1717855859586,-568.09,0.00018356,2]
[328832529,1717855859595,-561.44,0.00018356,2]
[328832530,1717855859605,-1017.89,0.00018356,4]
[328832531,1717855859615,-500.0,0.00018356,2]
[328832532,1717855859624,-500.0,0.00018356,2]
[328832533,1717855859634,-500.0,0.00018356,2]
[328832534,1717855859643,-500.0,0.00018356,2]
[328832535,1717855859653,-1462.49,0.00018356,2]
[328832536,1717855859663,-500.0,0.00018356,2]
[328832537,1717855859673,-570.14,0.00018356,2]
[328832538,1717855859683,-1790.87,0.00018356,2]
[328832539,1717855859693,-586.65,0.00018356,2]
[328832540,1717855859702,-500.0,0.00018356,2]
[328832541,1717855859713,-507.73259537,0.00018356,2]
[328832542,1717855859723,-654.96,0.00018356,2]
[328832543,1717855859733,-500.0,0.00018356,2]
[328832544,1717855859744,-1480.04,0.00018356,2]
[328832545,1717855859756,-500.0,0.00018356,2]
[328832546,1717855859765,-877.21,0.00018356,2]
[328832547,1717855859775,-619.8,0.00018356,2]
[328832548,1717855859785,-975.62,0.00018356,2]
[328832549,1717855859794,-660.83,0.00018356,2]
[328832550,1717855859804,-537.35,0.00018356,2]
[328832551,1717855859813,-500.0,0.00018356,2]
[328832552,1717855859823,-1571.4,0.00018356,2]
[328832553,1717855859833,-500.0,0.00018356,2]
[328832554,1717855859842,-920.56,0.00018356,2]
[328832555,1717855859852,-732.6,0.00018356,2]
[328832556,1717855859862,-500.0,0.00018356,2]
[328832557,1717855859872,-331.85118977,0.00018356,2]
[328832558,1717855859882,-1098.5,0.00018356,2]
[328832559,1717855859892,-500.0,0.00018356,2]
[328832560,1717855859902,-500.0,0.00018356,2]